[Event "Titled Tuesday Blitz November 07 Late 2023"]
[White "Awoki, Daniel Teidi"]
[Black "Przybylski, Wojciech"]
[WhiteFideId "2100827"]
[BlackFideId "1117599"]
[WhiteElo "2294"]
[BlackElo "2538"]
[Result "1/2-1/2"]
[Round "3"]
[TimeControl "180+1"]
[Date "2023.11.07"]
[WhiteClock "0:00:12"]
[BlackClock "0:00:08"]
[Board "112"]

1. e4 {[%clk 0:03:00]}  c6 {[%clk 0:02:59]} 2. d4 {[%clk 0:02:59]}  d5 {[%clk 0:03:00]} 3. exd5 {[%clk 0:02:59]}  cxd5 {[%clk 0:02:59]} 4. c4 {[%clk 0:02:59]}  Nf6 {[%clk 0:02:59]} 5. Nc3 {[%clk 0:02:59]}  e6 {[%clk 0:02:59]} 6. Nf3 {[%clk 0:02:59]}  Be7 {[%clk 0:02:59]} 7. cxd5 {[%clk 0:03:00]}  exd5 {[%clk 0:02:58]} 8. Bd3 {[%clk 0:03:00]}  O-O {[%clk 0:02:58]} 9. O-O {[%clk 0:03:01]}  Bg4 {[%clk 0:02:57]} 10. h3 {[%clk 0:03:01]}  Bh5 {[%clk 0:02:57]} 11. Re1 {[%clk 0:02:49]}  Nbd7 {[%clk 0:02:51]} 12. Bc2 {[%clk 0:02:48]}  Nb6 {[%clk 0:02:50]} 13. Bf4 {[%clk 0:02:39]}  Rc8 {[%clk 0:02:45]} 14. g4 {[%clk 0:02:37]}  Bg6 {[%clk 0:02:42]} 15. Bxg6 {[%clk 0:02:37]}  fxg6 {[%clk 0:02:35]} 16. Be5 {[%clk 0:02:33]}  Ne4 {[%clk 0:02:25]} 17. Nxe4 {[%clk 0:02:28]}  dxe4 {[%clk 0:02:24]} 18. Rxe4 {[%clk 0:02:25]}  Qd5 {[%clk 0:02:23]} 19. Re3 {[%clk 0:02:18]}  Nc4 {[%clk 0:02:15]} 20. Rc3 {[%clk 0:01:57]}  Nxb2 {[%clk 0:02:00]} 21. Qb3 {[%clk 0:01:56]}  Nc4 {[%clk 0:01:32]} 22. Rac1 {[%clk 0:01:46]}  b5 {[%clk 0:01:32]} 23. Nd2 {[%clk 0:01:40]}  Qf7 {[%clk 0:00:49]} 24. Rf3 {[%clk 0:01:19]}  Qd5 {[%clk 0:00:35]} 25. Rxf8+ {[%clk 0:01:02]}  Bxf8 {[%clk 0:00:34]} 26. Nxc4 {[%clk 0:01:00]}  bxc4 {[%clk 0:00:34]} 27. Qc3 {[%clk 0:00:38]}  a5 {[%clk 0:00:33]} 28. Rb1 {[%clk 0:00:38]}  Bb4 {[%clk 0:00:32]} 29. Qc2 {[%clk 0:00:28]}  c3 {[%clk 0:00:31]} 30. Rb3 {[%clk 0:00:17]}  Qc4 {[%clk 0:00:28]} 31. Kg2 {[%clk 0:00:08]}  Re8 {[%clk 0:00:17]} 32. Kg1 {[%clk 0:00:07]}  Rc8 {[%clk 0:00:16]} 33. a3 {[%clk 0:00:06]}  Be7 {[%clk 0:00:15]} 34. d5 {[%clk 0:00:05]}  Qxd5 {[%clk 0:00:15]} 35. Rxc3 {[%clk 0:00:05]}  Re8 {[%clk 0:00:14]} 36. Bg3 {[%clk 0:00:04]}  Bf6 {[%clk 0:00:07]} 37. Qb3 {[%clk 0:00:03]}  Qxb3 {[%clk 0:00:06]} 38. Rxb3 {[%clk 0:00:04]}  Re1+ {[%clk 0:00:06]} 39. Kg2 {[%clk 0:00:05]}  Ra1 {[%clk 0:00:06]} 40. Bc7 {[%clk 0:00:04]}  a4 {[%clk 0:00:06]} 41. Rd3 {[%clk 0:00:03]}  Kf7 {[%clk 0:00:06]} 42. Bd6 {[%clk 0:00:03]}  Ke6 {[%clk 0:00:06]} 43. Bb4 {[%clk 0:00:03]}  h5 {[%clk 0:00:06]} 44. Rd6+ {[%clk 0:00:03]}  Kf7 {[%clk 0:00:06]} 45. gxh5 {[%clk 0:00:03]}  gxh5 {[%clk 0:00:06]} 46. Ra6 {[%clk 0:00:04]}  Ra2 {[%clk 0:00:06]} 47. Rxa4 {[%clk 0:00:03]}  Bd4 {[%clk 0:00:06]} 48. Be1 {[%clk 0:00:03]}  Bc5 {[%clk 0:00:06]} 49. Ra5 {[%clk 0:00:03]}  Rc2 {[%clk 0:00:04]} 50. a4 {[%clk 0:00:03]}  g5 {[%clk 0:00:04]} 51. Ra6 {[%clk 0:00:02]}  g4 {[%clk 0:00:04]} 52. hxg4 {[%clk 0:00:02]}  hxg4 {[%clk 0:00:04]} 53. Kg3 {[%clk 0:00:03]}  Rc1 {[%clk 0:00:04]} 54. Bd2 {[%clk 0:00:03]}  Rc2 {[%clk 0:00:05]} 55. Be3 {[%clk 0:00:03]}  Be7 {[%clk 0:00:04]} 56. Kxg4 {[%clk 0:00:03]}  Rc4+ {[%clk 0:00:05]} 57. Kf3 {[%clk 0:00:04]}  Rb4 {[%clk 0:00:05]} 58. Ra7 {[%clk 0:00:04]}  Rb3 {[%clk 0:00:04]} 59. a5 {[%clk 0:00:04]}  Ke6 {[%clk 0:00:04]} 60. a6 {[%clk 0:00:04]}  Bd6 {[%clk 0:00:04]} 61. Rb7 {[%clk 0:00:04]}  Ra3 {[%clk 0:00:04]} 62. Rb6 {[%clk 0:00:04]}  Kd5 {[%clk 0:00:04]} 63. Rb8 {[%clk 0:00:03]}  Rxa6 {[%clk 0:00:03]} 64. Rd8 {[%clk 0:00:02]}  Ke6 {[%clk 0:00:03]} 65. Rg8 {[%clk 0:00:03]}  Ra4 {[%clk 0:00:03]} 66. Rg1 {[%clk 0:00:03]}  Kf7 {[%clk 0:00:03]} 67. Rg4 {[%clk 0:00:04]}  Ra3 {[%clk 0:00:03]} 68. Re4 {[%clk 0:00:04]}  Be7 {[%clk 0:00:03]} 69. Ke2 {[%clk 0:00:04]}  Ra2+ {[%clk 0:00:03]} 70. Kf3 {[%clk 0:00:04]}  Bf6 {[%clk 0:00:04]} 71. Rf4 {[%clk 0:00:04]}  Ke6 {[%clk 0:00:03]} 72. Re4+ {[%clk 0:00:04]}  Kf5 {[%clk 0:00:03]} 73. Rf4+ {[%clk 0:00:05]}  Ke6 {[%clk 0:00:04]} 74. Re4+ {[%clk 0:00:05]}  Kd5 {[%clk 0:00:04]} 75. Rf4 {[%clk 0:00:05]}  Be5 {[%clk 0:00:05]} 76. Rf5 {[%clk 0:00:05]}  Ke6 {[%clk 0:00:05]} 77. Rh5 {[%clk 0:00:05]}  Ra8 {[%clk 0:00:05]} 78. Rh4 {[%clk 0:00:05]}  Rf8+ {[%clk 0:00:04]} 79. Ke2 {[%clk 0:00:06]}  Re8 {[%clk 0:00:04]} 80. Ra4 {[%clk 0:00:06]}  Kf5 {[%clk 0:00:04]} 81. Ra5 {[%clk 0:00:06]}  Kg4 {[%clk 0:00:05]} 82. Ra4+ {[%clk 0:00:06]}  Kf5 {[%clk 0:00:05]} 83. Ra5 {[%clk 0:00:07]}  Kg4 {[%clk 0:00:05]} 84. Ra4+ {[%clk 0:00:07]}  Kh3 {[%clk 0:00:05]} 85. Re4 {[%clk 0:00:07]}  Re7 {[%clk 0:00:03]} 86. f4 {[%clk 0:00:07]}  Bf6 {[%clk 0:00:03]} 87. Rxe7 {[%clk 0:00:07]}  Bxe7 {[%clk 0:00:03]} 88. Kf3 {[%clk 0:00:08]}  Kh4 {[%clk 0:00:03]} 89. Bd4 {[%clk 0:00:07]}  Kh5 {[%clk 0:00:04]} 90. Ke4 {[%clk 0:00:07]}  Kg6 {[%clk 0:00:04]} 91. f5+ {[%clk 0:00:07]}  Kf7 {[%clk 0:00:04]} 92. Be5 {[%clk 0:00:07]}  Bc5 {[%clk 0:00:04]} 93. Kf4 {[%clk 0:00:08]}  Bb4 {[%clk 0:00:04]} 94. Ke4 {[%clk 0:00:08]}  Ba3 {[%clk 0:00:05]} 95. Kf4 {[%clk 0:00:09]}  Bb4 {[%clk 0:00:05]} 96. Ke4 {[%clk 0:00:09]}  Ba3 {[%clk 0:00:06]} 97. Kf4 {[%clk 0:00:10]}  Bc1+ {[%clk 0:00:06]} 98. Ke4 {[%clk 0:00:10]}  Bd2 {[%clk 0:00:07]} 99. Bf4 {[%clk 0:00:11]}  Bc3 {[%clk 0:00:07]} 100. Be5 {[%clk 0:00:11]}  Bd2 {[%clk 0:00:07]} 101. Bf4 {[%clk 0:00:11]}  Bc3 {[%clk 0:00:08]} 102. Be5 {[%clk 0:00:12]}  Bd2 {[%clk 0:00:08]} 1/2-1/2


[Site "https://www.chess.com"]

[Event "Titled Tuesday Blitz November 07 Late 2023"]
[White "a-z30"]
[Black "Bullen, Alex"]
[BlackFideId "1801627"]
[WhiteElo "2527"]
[BlackElo "2230"]
[Result "1-0"]
[Round "3"]
[TimeControl "180+1"]
[Date "2023.11.07"]
[WhiteClock "0:00:07"]
[BlackClock "0:00:00"]
[Board "115"]

1. d3 {[%clk 0:03:00]}  d5 {[%clk 0:02:58]} 2. Nf3 {[%clk 0:03:01]}  Nf6 {[%clk 0:02:58]} 3. g3 {[%clk 0:03:02]}  Bg4 {[%clk 0:02:55]} 4. Bg2 {[%clk 0:03:03]}  c6 {[%clk 0:02:54]} 5. O-O {[%clk 0:03:02]}  e6 {[%clk 0:02:55]} 6. c4 {[%clk 0:03:02]}  Nbd7 {[%clk 0:02:55]} 7. cxd5 {[%clk 0:03:02]}  Bxf3 {[%clk 0:02:52]} 8. Bxf3 {[%clk 0:03:01]}  cxd5 {[%clk 0:02:48]} 9. e4 {[%clk 0:02:47]}  dxe4 {[%clk 0:02:43]} 10. dxe4 {[%clk 0:02:47]}  Nc5 {[%clk 0:02:38]} 11. Nc3 {[%clk 0:02:41]}  Be7 {[%clk 0:02:35]} 12. b4 {[%clk 0:02:12]}  Nd3 {[%clk 0:01:57]} 13. Qa4+ {[%clk 0:02:11]}  Qd7 {[%clk 0:01:56]} 14. Qxd7+ {[%clk 0:02:10]}  Nxd7 {[%clk 0:01:54]} 15. Be3 {[%clk 0:01:51]}  Bxb4 {[%clk 0:01:42]} 16. Nb5 {[%clk 0:01:45]}  O-O {[%clk 0:01:35]} 17. Bxa7 {[%clk 0:01:22]}  N3e5 {[%clk 0:01:23]} 18. Be2 {[%clk 0:01:17]}  Bc5 {[%clk 0:01:19]} 19. Bxc5 {[%clk 0:01:13]}  Nxc5 {[%clk 0:01:20]} 20. f4 {[%clk 0:01:07]}  Nc6 {[%clk 0:01:16]} 21. e5 {[%clk 0:01:02]}  Rfd8 {[%clk 0:01:12]} 22. Nd6 {[%clk 0:01:01]}  h6 {[%clk 0:01:03]} 23. Bf3 {[%clk 0:01:01]}  Nd4 {[%clk 0:00:52]} 24. Bg2 {[%clk 0:00:50]}  Ra7 {[%clk 0:00:44]} 25. Rfd1 {[%clk 0:00:45]}  Ne2+ {[%clk 0:00:42]} 26. Kf2 {[%clk 0:00:41]}  Nc3 {[%clk 0:00:42]} 27. Rh1 {[%clk 0:00:23]}  b6 {[%clk 0:00:34]} 28. Ke3 {[%clk 0:00:22]}  Rxa2 {[%clk 0:00:30]} 29. Rxa2 {[%clk 0:00:22]}  Nxa2 {[%clk 0:00:31]} 30. Rb1 {[%clk 0:00:19]}  Rb8 {[%clk 0:00:23]} 31. Kd4 {[%clk 0:00:19]}  Nd7 {[%clk 0:00:11]} 32. Rb2 {[%clk 0:00:18]}  Nc1 {[%clk 0:00:11]} 33. Nc4 {[%clk 0:00:11]}  Rc8 {[%clk 0:00:09]} 34. Nxb6 {[%clk 0:00:09]}  Nxb6 {[%clk 0:00:08]} 35. Rxb6 {[%clk 0:00:10]}  Ne2+ {[%clk 0:00:07]} 36. Ke3 {[%clk 0:00:09]}  Nc3 {[%clk 0:00:07]} 37. Rb7 {[%clk 0:00:07]}  Rd8 {[%clk 0:00:06]} 38. Be4 {[%clk 0:00:07]}  Nxe4 {[%clk 0:00:06]} 39. Kxe4 {[%clk 0:00:07]}  Rd1 {[%clk 0:00:06]} 40. h4 {[%clk 0:00:07]}  Re1+ {[%clk 0:00:06]} 41. Kf3 {[%clk 0:00:07]}  Rf1+ {[%clk 0:00:06]} 42. Kg4 {[%clk 0:00:06]}  Ra1 {[%clk 0:00:07]} 43. h5 {[%clk 0:00:06]}  Ra3 {[%clk 0:00:06]} 44. Rb8+ {[%clk 0:00:06]}  Kh7 {[%clk 0:00:06]} 45. Rf8 {[%clk 0:00:07]}  Ra7 {[%clk 0:00:05]} 46. Rd8 {[%clk 0:00:07]}  Rb7 {[%clk 0:00:06]} 47. Rd3 {[%clk 0:00:08]}  Ra7 {[%clk 0:00:06]} 48. Rf3 {[%clk 0:00:08]}  Rb7 {[%clk 0:00:06]} 49. Kh4 {[%clk 0:00:09]}  Ra7 {[%clk 0:00:07]} 50. g4 {[%clk 0:00:10]}  Rb7 {[%clk 0:00:07]} 51. Rd3 {[%clk 0:00:10]}  Ra7 {[%clk 0:00:07]} 52. Rd4 {[%clk 0:00:10]}  Rb7 {[%clk 0:00:07]} 53. f5 {[%clk 0:00:10]}  exf5 {[%clk 0:00:06]} 54. gxf5 {[%clk 0:00:10]}  Kg8 {[%clk 0:00:06]} 55. Kg4 {[%clk 0:00:11]}  Rc7 {[%clk 0:00:05]} 56. Kf4 {[%clk 0:00:11]}  Kf8 {[%clk 0:00:05]} 57. Ke4 {[%clk 0:00:08]}  Ke7 {[%clk 0:00:05]} 58. Ra4 {[%clk 0:00:09]}  Rb7 {[%clk 0:00:05]} 59. Kd5 {[%clk 0:00:09]}  Rd7+ {[%clk 0:00:04]} 60. Kc6 {[%clk 0:00:07]}  Rd1 {[%clk 0:00:04]} 61. Ra7+ {[%clk 0:00:07]}  Ke8 {[%clk 0:00:03]} 62. Ra8+ {[%clk 0:00:07]}  Ke7 {[%clk 0:00:04]} 63. Rg8 {[%clk 0:00:05]}  Rc1+ {[%clk 0:00:03]} 64. Kd5 {[%clk 0:00:05]}  Rd1+ {[%clk 0:00:04]} 65. Ke4 {[%clk 0:00:05]}  Re1+ {[%clk 0:00:04]} 66. Kf4 {[%clk 0:00:06]}  Rf1+ {[%clk 0:00:05]} 67. Kg4 {[%clk 0:00:06]}  Re1 {[%clk 0:00:05]} 68. e6 {[%clk 0:00:04]}  fxe6 {[%clk 0:00:05]} 69. Rxg7+ {[%clk 0:00:04]}  Kf6 {[%clk 0:00:05]} 70. Rg6+ {[%clk 0:00:04]}  Kf7 {[%clk 0:00:03]} 71. Rxh6 {[%clk 0:00:04]}  exf5+ {[%clk 0:00:03]} 72. Kxf5 {[%clk 0:00:03]}  Rf1+ {[%clk 0:00:03]} 73. Kg4 {[%clk 0:00:04]}  Rg1+ {[%clk 0:00:03]} 74. Kh4 {[%clk 0:00:04]}  Kg7 {[%clk 0:00:03]} 75. Re6 {[%clk 0:00:04]}  Kh7 {[%clk 0:00:03]} 76. Re7+ {[%clk 0:00:03]}  Kh8 {[%clk 0:00:03]} 77. Re8+ {[%clk 0:00:03]}  Kh7 {[%clk 0:00:03]} 78. Re7+ {[%clk 0:00:04]}  Kh8 {[%clk 0:00:03]} 79. Re5 {[%clk 0:00:04]}  Kh7 {[%clk 0:00:04]} 80. Rf5 {[%clk 0:00:04]}  Kh8 {[%clk 0:00:04]} 81. Rf7 {[%clk 0:00:04]}  Kg8 {[%clk 0:00:04]} 82. Ra7 {[%clk 0:00:04]}  Kh8 {[%clk 0:00:05]} 83. h6 {[%clk 0:00:05]}  Kg8 {[%clk 0:00:04]} 84. Kh5 {[%clk 0:00:05]}  Kh8 {[%clk 0:00:04]} 85. Ra8+ {[%clk 0:00:06]}  Kh7 {[%clk 0:00:04]} 86. Ra7+ {[%clk 0:00:06]}  Kh8 {[%clk 0:00:05]} 87. Ra8+ {[%clk 0:00:07]}  Kh7 {[%clk 0:00:05]} 88. Ra5 {[%clk 0:00:06]}  Kh8 {[%clk 0:00:04]} 89. Re5 {[%clk 0:00:07]}  Kh7 {[%clk 0:00:04]} 90. Re7+ {[%clk 0:00:07]}  Kh8 {[%clk 0:00:05]} 91. Re8+ {[%clk 0:00:07]}  Kh7 {[%clk 0:00:05]} 92. Re4 {[%clk 0:00:08]}  Kh8 {[%clk 0:00:06]} 93. Rh4 {[%clk 0:00:07]}  Kh7 {[%clk 0:00:05]} 94. Rf4 {[%clk 0:00:07]}  Kh8 {[%clk 0:00:06]} 95. Rf7 {[%clk 0:00:07]}  Kg8 {[%clk 0:00:06]} 96. Rd7 {[%clk 0:00:07]}  Kh8 {[%clk 0:00:06]} 97. Kh4 {[%clk 0:00:07]}  Kg8 {[%clk 0:00:06]} 98. Kh3 {[%clk 0:00:07]}  Rh1+ {[%clk 0:00:06]} 99. Kg4 {[%clk 0:00:08]}  Rxh6 {[%clk 0:00:07]} 100. Kg5 {[%clk 0:00:08]}  Rh7 {[%clk 0:00:07]} 101. Rd8+ {[%clk 0:00:08]}  Kg7 {[%clk 0:00:07]} 102. Rc8 {[%clk 0:00:07]}  Rh8 {[%clk 0:00:07]} 103. Rc7+ {[%clk 0:00:07]}  Kf8 {[%clk 0:00:06]} 104. Kg6 {[%clk 0:00:07]}  Rg8+ {[%clk 0:00:06]} 105. Kf6 {[%clk 0:00:07]}  Ke8 {[%clk 0:00:06]} 106. Rc8+ {[%clk 0:00:06]}  Kd7 {[%clk 0:00:00]} 107. Rxg8 {[%clk 0:00:07]} 1-0


[Site "https://www.chess.com"]

[Event "Titled Tuesday Blitz November 07 Late 2023"]
[White "Adel, Sara"]
[Black "Shubenkova, Veronika"]
[WhiteFideId "10616764"]
[BlackFideId "44124040"]
[WhiteElo "2209"]
[BlackElo "2526"]
[Result "0-1"]
[Round "3"]
[TimeControl "180+1"]
[Date "2023.11.07"]
[WhiteClock "0:02:49"]
[BlackClock "0:02:54"]
[Board "116"]

1. e4 {[%clk 0:02:56]}  c5 {[%clk 0:02:59]} 2. Nc3 {[%clk 0:02:56]}  e6 {[%clk 0:03:00]} 3. f4 {[%clk 0:02:57]}  Nc6 {[%clk 0:03:00]} 4. Nf3 {[%clk 0:02:56]}  Nf6 {[%clk 0:03:00]} 5. Bb5 {[%clk 0:02:57]}  a6 {[%clk 0:02:59]} 6. Bxc6 {[%clk 0:02:57]}  dxc6 {[%clk 0:02:58]} 7. e5 {[%clk 0:02:56]}  Nd5 {[%clk 0:02:58]} 8. d3 {[%clk 0:02:56]}  Be7 {[%clk 0:02:58]} 9. O-O {[%clk 0:02:56]}  b5 {[%clk 0:02:58]} 10. Ne4 {[%clk 0:02:56]}  Bb7 {[%clk 0:02:55]} 11. Be3 {[%clk 0:02:49]}  Nxe3 {[%clk 0:02:54]} 0-1


[Site "https://www.chess.com"]

[Event "Titled Tuesday Blitz November 07 Late 2023"]
[White "Silva Lucena, Cristian"]
[Black "Kniazev, Igor"]
[WhiteFideId "2232588"]
[BlackFideId "4136349"]
[WhiteElo "2523"]
[BlackElo "2191"]
[Result "1-0"]
[Round "3"]
[TimeControl "180+1"]
[Date "2023.11.07"]
[WhiteClock "0:01:29"]
[BlackClock "0:00:52"]
[Board "117"]

1. e4 {[%clk 0:02:58]}  e5 {[%clk 0:02:59]} 2. Nf3 {[%clk 0:02:58]}  Nf6 {[%clk 0:02:59]} 3. Nxe5 {[%clk 0:02:58]}  Nxe4 {[%clk 0:02:59]} 4. Qe2 {[%clk 0:02:57]}  Qe7 {[%clk 0:03:00]} 5. Qxe4 {[%clk 0:02:57]}  d6 {[%clk 0:03:00]} 6. d4 {[%clk 0:02:57]}  dxe5 {[%clk 0:03:01]} 7. dxe5 {[%clk 0:02:58]}  Nc6 {[%clk 0:03:01]} 8. Nc3 {[%clk 0:02:59]}  Qxe5 {[%clk 0:03:00]} 9. Qxe5+ {[%clk 0:02:59]}  Nxe5 {[%clk 0:03:01]} 10. Nb5 {[%clk 0:02:59]}  Bb4+ {[%clk 0:03:00]} 11. c3 {[%clk 0:02:55]}  Ba5 {[%clk 0:03:00]} 12. Bf4 {[%clk 0:02:55]}  O-O {[%clk 0:02:56]} 13. Bxe5 {[%clk 0:02:29]}  Re8 {[%clk 0:02:55]} 14. O-O-O {[%clk 0:02:29]}  Bg4 {[%clk 0:02:11]} 15. f3 {[%clk 0:02:16]}  Bxf3 {[%clk 0:01:56]} 16. gxf3 {[%clk 0:02:16]}  Rxe5 {[%clk 0:01:57]} 17. Nd4 {[%clk 0:02:13]}  Rae8 {[%clk 0:01:45]} 18. f4 {[%clk 0:02:13]}  Re4 {[%clk 0:01:42]} 19. f5 {[%clk 0:02:10]}  Bb6 {[%clk 0:01:38]} 20. Bg2 {[%clk 0:02:08]}  Rf4 {[%clk 0:01:36]} 21. Rhf1 {[%clk 0:02:07]}  Rh4 {[%clk 0:01:29]} 22. h3 {[%clk 0:02:01]}  c6 {[%clk 0:01:28]} 23. Rde1 {[%clk 0:01:57]}  Kf8 {[%clk 0:01:20]} 24. Rxe8+ {[%clk 0:01:57]}  Kxe8 {[%clk 0:01:20]} 25. Nf3 {[%clk 0:01:56]}  Rf4 {[%clk 0:01:16]} 26. Ne5 {[%clk 0:01:53]}  Ra4 {[%clk 0:01:10]} 27. a3 {[%clk 0:01:49]}  f6 {[%clk 0:01:09]} 28. Nxc6 {[%clk 0:01:43]}  Be3+ {[%clk 0:01:03]} 29. Kc2 {[%clk 0:01:42]}  Kd7 {[%clk 0:00:58]} 30. Nb4 {[%clk 0:01:41]}  a5 {[%clk 0:00:57]} 31. Kb3 {[%clk 0:01:29]}  b5 {[%clk 0:00:55]} 32. Bc6+ {[%clk 0:01:30]}  Kc7 {[%clk 0:00:52]} 33. Bxb5 {[%clk 0:01:29]} 1-0


[Site "https://www.chess.com"]

[Event "Titled Tuesday Blitz November 07 Late 2023"]
[White "D`Arruda, Ricardo D."]
[Black "Vila Dupla, Aurelio"]
[WhiteFideId "100692"]
[BlackFideId "2203383"]
[WhiteElo "2517"]
[BlackElo "2182"]
[Result "1-0"]
[Round "3"]
[TimeControl "180+1"]
[Date "2023.11.07"]
[WhiteClock "0:01:09"]
[BlackClock "0:00:03"]
[Board "118"]

1. d4 {[%clk 0:02:51]}  Nf6 {[%clk 0:02:58]} 2. Nf3 {[%clk 0:02:51]}  g6 {[%clk 0:02:58]} 3. Nc3 {[%clk 0:02:50]}  d5 {[%clk 0:02:58]} 4. Bg5 {[%clk 0:02:49]}  Bg7 {[%clk 0:02:58]} 5. Bxf6 {[%clk 0:02:48]}  Bxf6 {[%clk 0:02:57]} 6. e4 {[%clk 0:02:49]}  dxe4 {[%clk 0:02:56]} 7. Nxe4 {[%clk 0:02:50]}  Bg7 {[%clk 0:02:56]} 8. Bc4 {[%clk 0:02:50]}  e6 {[%clk 0:02:50]} 9. O-O {[%clk 0:02:50]}  O-O {[%clk 0:02:50]} 10. Qe2 {[%clk 0:02:50]}  Nc6 {[%clk 0:02:48]} 11. Rad1 {[%clk 0:02:50]}  Na5 {[%clk 0:02:35]} 12. Bd3 {[%clk 0:02:46]}  b6 {[%clk 0:02:26]} 13. c3 {[%clk 0:02:35]}  Bb7 {[%clk 0:02:25]} 14. Rfe1 {[%clk 0:02:35]}  Re8 {[%clk 0:02:08]} 15. h4 {[%clk 0:02:32]}  Nc6 {[%clk 0:01:42]} 16. h5 {[%clk 0:02:31]}  Ne7 {[%clk 0:01:42]} 17. h6 {[%clk 0:02:26]}  Bh8 {[%clk 0:01:41]} 18. Ne5 {[%clk 0:02:14]}  Nf5 {[%clk 0:01:29]} 19. Ng4 {[%clk 0:02:13]}  Bxe4 {[%clk 0:01:24]} 20. Bxe4 {[%clk 0:02:12]}  Rc8 {[%clk 0:01:25]} 21. Bb7 {[%clk 0:02:04]}  Rb8 {[%clk 0:01:24]} 22. Bc6 {[%clk 0:02:04]}  Re7 {[%clk 0:01:22]} 23. Be4 {[%clk 0:01:56]}  Nd6 {[%clk 0:01:19]} 24. Ne5 {[%clk 0:01:50]}  Nxe4 {[%clk 0:01:00]} 25. Nc6 {[%clk 0:01:48]}  Nxc3 {[%clk 0:00:56]} 26. bxc3 {[%clk 0:01:42]}  Qe8 {[%clk 0:00:53]} 27. Nxe7+ {[%clk 0:01:38]}  Qxe7 {[%clk 0:00:53]} 28. Rd3 {[%clk 0:01:34]}  Qg5 {[%clk 0:00:50]} 29. Qe3 {[%clk 0:01:33]}  Bf6 {[%clk 0:00:48]} 30. d5 {[%clk 0:01:29]}  Qxe3 {[%clk 0:00:35]} 31. Rexe3 {[%clk 0:01:29]}  Bg5 {[%clk 0:00:35]} 32. Rg3 {[%clk 0:01:29]}  Bxh6 {[%clk 0:00:34]} 33. dxe6 {[%clk 0:01:29]}  fxe6 {[%clk 0:00:33]} 34. Rd7 {[%clk 0:01:29]}  Rf8 {[%clk 0:00:18]} 35. Rgd3 {[%clk 0:01:15]}  Bf4 {[%clk 0:00:16]} 36. Rf3 {[%clk 0:01:15]}  Bd6 {[%clk 0:00:14]} 37. Rxf8+ {[%clk 0:01:14]}  Bxf8 {[%clk 0:00:10]} 38. Rxc7 {[%clk 0:01:14]}  a5 {[%clk 0:00:10]} 39. a4 {[%clk 0:01:12]}  Bc5 {[%clk 0:00:10]} 40. Kf1 {[%clk 0:01:12]}  h5 {[%clk 0:00:11]} 41. f3 {[%clk 0:01:10]}  Kf8 {[%clk 0:00:11]} 42. Ke2 {[%clk 0:01:10]}  Kg8 {[%clk 0:00:09]} 43. Kd3 {[%clk 0:01:10]}  Kf8 {[%clk 0:00:09]} 44. Ke4 {[%clk 0:01:10]}  Kg8 {[%clk 0:00:07]} 45. c4 {[%clk 0:01:10]}  Kf8 {[%clk 0:00:07]} 46. Ke5 {[%clk 0:01:09]}  Kg8 {[%clk 0:00:03]} 47. Kxe6 {[%clk 0:01:09]} 1-0


[Site "https://www.chess.com"]

[Event "Titled Tuesday Blitz November 07 Late 2023"]
[White "kalxandria"]
[Black "Tifferet, Shaked"]
[BlackFideId "2811529"]
[WhiteElo "2171"]
[BlackElo "2517"]
[Result "1/2-1/2"]
[Round "3"]
[TimeControl "180+1"]
[Date "2023.11.07"]
[WhiteClock "0:00:12"]
[BlackClock "0:00:04"]
[Board "119"]

1. e4 {[%clk 0:03:00]}  c5 {[%clk 0:02:58]} 2. Nf3 {[%clk 0:02:59]}  d6 {[%clk 0:02:58]} 3. d4 {[%clk 0:02:59]}  cxd4 {[%clk 0:02:59]} 4. Nxd4 {[%clk 0:02:59]}  Nf6 {[%clk 0:02:59]} 5. Nc3 {[%clk 0:02:59]}  e5 {[%clk 0:02:59]} 6. Nf3 {[%clk 0:02:53]}  Be6 {[%clk 0:02:52]} 7. Ng5 {[%clk 0:02:47]}  Nc6 {[%clk 0:02:35]} 8. Nxe6 {[%clk 0:02:46]}  fxe6 {[%clk 0:02:36]} 9. Bc4 {[%clk 0:02:44]}  Qd7 {[%clk 0:02:29]} 10. Bg5 {[%clk 0:02:38]}  Be7 {[%clk 0:02:27]} 11. O-O {[%clk 0:02:34]}  O-O {[%clk 0:02:23]} 12. Bb3 {[%clk 0:02:19]}  Nd4 {[%clk 0:02:21]} 13. Bxf6 {[%clk 0:02:15]}  Rxf6 {[%clk 0:02:15]} 14. Ne2 {[%clk 0:01:51]}  Nxb3 {[%clk 0:02:05]} 15. axb3 {[%clk 0:01:52]}  a6 {[%clk 0:02:05]} 16. Qd3 {[%clk 0:01:49]}  Raf8 {[%clk 0:01:54]} 17. Rad1 {[%clk 0:01:41]}  Qc6 {[%clk 0:01:45]} 18. f3 {[%clk 0:01:39]}  Rh6 {[%clk 0:01:43]} 19. g3 {[%clk 0:01:12]}  Rc8 {[%clk 0:01:39]} 20. c3 {[%clk 0:01:10]}  Qb6+ {[%clk 0:01:38]} 21. Kg2 {[%clk 0:01:07]}  Qxb3 {[%clk 0:01:39]} 22. Rd2 {[%clk 0:01:02]}  Rf6 {[%clk 0:01:31]} 23. f4 {[%clk 0:00:57]}  exf4 {[%clk 0:01:29]} 24. gxf4 {[%clk 0:00:56]}  Qc4 {[%clk 0:01:26]} 25. Qxc4 {[%clk 0:00:54]}  Rxc4 {[%clk 0:01:27]} 26. e5 {[%clk 0:00:51]}  dxe5 {[%clk 0:01:21]} 27. fxe5 {[%clk 0:00:50]}  Rxf1 {[%clk 0:01:21]} 28. Kxf1 {[%clk 0:00:49]}  Rc5 {[%clk 0:00:52]} 29. Rd7 {[%clk 0:00:48]}  Kf7 {[%clk 0:00:52]} 30. Rxb7 {[%clk 0:00:45]}  Rxe5 {[%clk 0:00:53]} 31. Nd4 {[%clk 0:00:45]}  Rh5 {[%clk 0:00:43]} 32. Nc6 {[%clk 0:00:44]}  Rxh2 {[%clk 0:00:39]} 33. Rxe7+ {[%clk 0:00:43]}  Kf6 {[%clk 0:00:39]} 34. Rb7 {[%clk 0:00:39]}  g5 {[%clk 0:00:36]} 35. Nd4 {[%clk 0:00:38]}  g4 {[%clk 0:00:36]} 36. Rb6 {[%clk 0:00:38]}  h5 {[%clk 0:00:30]} 37. Rxe6+ {[%clk 0:00:38]}  Kg5 {[%clk 0:00:31]} 38. Re2 {[%clk 0:00:39]}  Rh1+ {[%clk 0:00:30]} 39. Kg2 {[%clk 0:00:39]}  Rb1 {[%clk 0:00:29]} 40. Re5+ {[%clk 0:00:39]}  Kh4 {[%clk 0:00:18]} 41. Nf5+ {[%clk 0:00:37]}  Kg5 {[%clk 0:00:18]} 42. Ng3+ {[%clk 0:00:37]}  Kf4 {[%clk 0:00:18]} 43. Rf5+ {[%clk 0:00:27]}  Ke3 {[%clk 0:00:19]} 44. b4 {[%clk 0:00:25]}  Rb2+ {[%clk 0:00:19]} 45. Kg1 {[%clk 0:00:23]}  h4 {[%clk 0:00:19]} 46. Nf1+ {[%clk 0:00:22]}  Ke4 {[%clk 0:00:19]} 47. Rh5 {[%clk 0:00:20]}  h3 {[%clk 0:00:19]} 48. c4 {[%clk 0:00:16]}  Rxb4 {[%clk 0:00:18]} 49. Rh8 {[%clk 0:00:16]}  Rb1 {[%clk 0:00:17]} 50. c5 {[%clk 0:00:15]}  Rc1 {[%clk 0:00:16]} 51. Re8+ {[%clk 0:00:15]}  Kf5 {[%clk 0:00:15]} 52. Rf8+ {[%clk 0:00:16]}  Ke5 {[%clk 0:00:14]} 53. Kh2 {[%clk 0:00:15]}  Rxc5 {[%clk 0:00:13]} 54. Kg3 {[%clk 0:00:14]}  Rc4 {[%clk 0:00:12]} 55. Nh2 {[%clk 0:00:14]}  a5 {[%clk 0:00:10]} 56. Nxg4+ {[%clk 0:00:15]}  Kd6 {[%clk 0:00:06]} 57. Kxh3 {[%clk 0:00:15]}  a4 {[%clk 0:00:06]} 58. Ra8 {[%clk 0:00:15]}  Kc5 {[%clk 0:00:06]} 59. Ne5 {[%clk 0:00:14]}  Rc3+ {[%clk 0:00:06]} 60. Kg4 {[%clk 0:00:14]}  a3 {[%clk 0:00:05]} 61. Kf5 {[%clk 0:00:14]}  Kd4 {[%clk 0:00:04]} 62. Rd8+ {[%clk 0:00:12]}  Ke3 {[%clk 0:00:05]} 63. Ra8 {[%clk 0:00:13]}  Kd2 {[%clk 0:00:04]} 64. Ke4 {[%clk 0:00:13]}  Kc2 {[%clk 0:00:05]} 65. Nf3 {[%clk 0:00:12]}  Rb3 {[%clk 0:00:05]} 66. Nd4+ {[%clk 0:00:13]}  Kb2 {[%clk 0:00:05]} 67. Nxb3 {[%clk 0:00:13]}  Kxb3 {[%clk 0:00:06]} 68. Kd3 {[%clk 0:00:13]}  a2 {[%clk 0:00:04]} 69. Rb8+ {[%clk 0:00:13]}  Ka3 {[%clk 0:00:04]} 70. Ra8+ {[%clk 0:00:13]}  Kb2 {[%clk 0:00:03]} 71. Kd2 {[%clk 0:00:13]}  a1=Q {[%clk 0:00:03]} 72. Rxa1 {[%clk 0:00:12]}  Kxa1 {[%clk 0:00:04]} 1/2-1/2


[Site "https://www.chess.com"]